bitfinex-derivatives/quotes_ETHF0:USTF0_20210102
["timestamp","ask_amount","ask_price","bid_price","bid_amount"]
[1609578230323,0.6,732.63,732.62,6.01438]
[1609578230521,80.5847,732.63,732.55,5.1185]
[1609578231924,6.01438,732.56,732.55,0.3185]
[1609578233226,9.95682229,732.56,732.55,0.3185]
[1609578234927,7.9597342,732.56,732.55,0.3185]
[1609578237333,6.01438,732.56,732.55,0.3185]
[1609578242034,6.01438,732.56,732.5,103.4262]
[1609578244240,0.6,732.63,732.5,103.4262]
[1609578246439,0.6,732.63,732.49,6.01438]
[1609578247844,6.61438,732.63,732.62,109.3782]
[1609578248343,0.6,732.63,732.62,109.3782]
[1609578249648,0.6,732.63,732.62,124.3782]
[1609578250745,0.6,732.63,732.62,109.3782]
[1609578250945,0.6,732.63,732.62,124.3782]
[1609578252245,1.99639516,732.93,732.62,124.3782]
[1609578253250,0.6,732.63,732.62,124.3782]
[1609578256554,0.6,732.63,732.59,3.631]
[1609578256555,0.6,732.63,732.6,15.0]
[1609578256754,0.6,732.63,732.59,3.631]
[1609578256956,0.6,732.63,732.57,6.01438]
[1609578258158,0.6,732.63,732.4,15.0]
[1609578258358,0.6,732.63,732.53,80.5724]
[1609578258759,0.6,732.63,732.53,84.1174]
[1609578262061,6.01438,732.58,732.53,84.1174]
[1609578263062,0.6,732.63,732.53,84.1174]
[1609578264063,6.01438,732.6,732.53,84.1174]
[1609578265864,0.6,732.63,732.53,84.1174]
[1609578268064,6.01438,732.61,732.53,84.1174]
[1609578270068,0.6,732.63,732.53,84.1174]
[1609578270469,0.6,732.63,732.53,3.545]
[1609578270669,0.6,732.63,732.49,6.01438]
[1609578271068,0.6,732.63,732.31,4.619]
[1609578271269,101.6239,732.52,732.09,122.60836143]
[1609578271669,101.6239,732.52,732.09,107.7217]
[1609578272071,6.01438,732.41,732.3,6.01438]
[1609578272672,0.6,732.63,732.3,6.01438]
[1609578272870,0.6,732.63,732.3,10.80538]
[1609578274176,6.01438,732.45,732.3,10.80538]
[1609578278078,6.01438,732.37,732.3,10.80538]
[1609578279478,1.99695165,732.62,732.3,10.80538]
[1609578279779,1.99690525,732.61,732.3,10.80538]
[1609578280181,6.01438,732.53,732.3,10.80538]
[1609578281486,0.0608,732.31,732.3,10.80538]
[1609578293599,0.0608,732.31,732.3,118.43828]
[1609578294297,0.0608,732.31,732.3,10.80538]
[1609578301504,0.0608,732.31,732.3,25.80538]
[1609578306615,0.0608,732.31,732.3,10.80538]
[1609578319334,0.6,732.63,732.3,10.80538]
[1609578319734,77.2796,732.62,732.3,10.80538]
[1609578319935,15.0,732.61,732.3,10.80538]
[1609578320337,6.01438,732.52,732.3,10.80538]
[1609578323442,21.01438,732.52,732.3,10.80538]
[1609578324441,6.01438,732.52,732.3,10.80538]
[1609578326443,6.01438,732.44,732.3,10.80538]
[1609578328445,6.01438,732.44,732.38,6.01438]
[1609578337057,0.6,732.63,732.3,4.791]
[1609578337257,0.6,732.63,732.29,99.789]
[1609578338656,6.01438,732.61,732.5,6.01438]
[1609578343862,0.6,732.63,732.29,99.789]
[1609578344566,0.6,732.63,732.29,103.475]
[1609578344764,6.01438,732.55,732.5,6.01438]
[1609578347167,0.6,732.63,732.29,103.475]
[1609578348775,6.01438,732.62,732.57,6.01438]
[1609578354678,6.01438,732.62,732.47,6.01438]
[1609578361184,21.01438,732.62,732.47,6.01438]
[1609578361388,79.7299,732.48,732.47,6.01438]
[1609578362185,94.7299,732.48,732.47,6.01438]
[1609578362686,15.0,732.48,732.29,3.686]
[1609578362885,21.01438,732.48,732.22,6.01438]
[1609578363284,6.01438,732.48,732.23,76.5378]
[1609578363485,6.01438,732.48,732.23,81.1878]
[1609578364887,6.01438,732.29,732.23,81.1878]
[1609578370095,6.01438,732.29,732.23,4.65]
[1609578370496,6.01438,732.29,732.22,6.01438]
[1609578371799,6.01438,732.29,732.04,96.8394]
[1609578372902,102.1853,732.32,732.16,6.01438]
[1609578373102,102.1853,732.32,732.16,10.68038]
[1609578375705,6.01438,732.42,732.16,10.68038]
[1609578375905,6.01438,732.42,732.19,85.4589]
[1609578376705,2.732,732.41,732.19,85.4589]
[1609578377006,6.01438,732.33,732.19,85.4589]
[1609578378411,2.7334,732.32,732.19,85.4589]
[1609578380814,6.01438,732.33,732.16,10.68038]
[1609578381817,2.7512,732.32,732.16,10.68038]
[1609578383218,6.01438,732.25,732.16,10.68038]
[1609578384420,2.7534,732.24,732.16,10.68038]
[1609578389128,6.01438,732.25,732.16,10.68038]
[1609578389329,6.01438,732.25,732.24,6.01438]
[1609578390329,8.74948,732.25,732.24,6.01438]
[1609578391829,6.01438,732.25,732.24,6.01438]
[1609578392830,8.74728,732.25,732.24,6.01438]
[1609578393032,6.01438,732.25,732.24,6.01438]
[1609578394132,8.77048,732.25,732.24,6.01438]
[1609578395235,6.01438,732.25,732.24,6.01438]
[1609578396235,8.74698,732.25,732.24,6.01438]
[1609578396634,6.01438,732.25,732.24,6.01438]
[1609578397837,8.70738,732.25,732.24,6.01438]
[1609578398738,6.01438,732.25,732.24,6.01438]
[1609578400140,8.77488,732.25,732.24,6.01438]
[1609578404647,6.01438,732.25,732.24,6.01438]
[1609578405749,8.76718,732.25,732.24,6.01438]
[1609578407149,6.01438,732.25,732.24,6.01438]
[1609578415861,17.97818,732.25,732.24,6.01438]
[1609578421568,17.97818,732.25,732.21,85.2252]
[1609578428285,6.01438,732.25,732.16,4.666]
[1609578428485,84.5772,732.21,732.13,6.01438]
[1609578429788,6.01438,732.14,732.13,6.01438]
[1609578431187,6.01438,732.14,732.13,89.36078]
[1609578434492,8.71488,732.14,732.13,89.36078]
[1609578434695,6.01438,732.14,732.13,89.36078]
[1609578436097,6.01438,732.14,732.13,93.04578]
[1609578443202,1.99682257,732.45,732.13,93.04578]
[1609578443400,1.99682257,732.45,732.13,24.69938]
[1609578443601,1.9967722,732.46,732.41,110.9518]
[1609578443802,6.01438,732.42,732.41,110.9518]
[1609578444906,6.01438,732.42,732.31,6.01438]
[1609578445108,6.01438,732.42,732.33,88.8202]
[1609578445709,6.01438,732.42,732.41,6.01438]
[1609578446508,6.01438,732.42,732.41,20.58348]
[1609578467033,6.01438,732.42,732.41,6.01438]
[1609578467435,6.01438,732.42,732.41,18.90648]
[1609578472349,5.99611496,732.42,732.41,18.90648]
[1609578477049,5.99611496,732.42,732.41,6.01438]
[1609578477850,8.71681496,732.42,732.41,6.01438]
[1609578478050,5.99611496,732.42,732.41,6.01438]
[1609578478352,1.99512111,732.62,732.41,6.01438]
[1609578478552,1.99512111,732.62,732.61,106.8606]
[1609578479354,0.6,732.63,732.61,106.8606]
[1609578479955,0.6,732.63,732.62,6.01438]
[1609578482154,0.6,732.63,732.62,9.79638]
[1609578491063,0.6,732.63,732.62,113.66618]
[1609578530114,1.9954749,733.17,732.62,128.66618]
[1609578530515,1.99525466,733.25,733.16,6.01438]
[1609578530714,1.99525466,733.25,733.16,10.07638]
[1609578531113,1.99525466,733.25,733.24,77.468]
[1609578531615,1.99518673,733.36,733.24,77.468]
[1609578532615,1.99518673,733.36,733.35,6.01438]
[1609578533015,1.99514809,733.39,733.35,6.01438]
[1609578533215,1.99514809,733.39,733.35,20.20768]
[1609578533617,1.99513576,733.4,733.35,20.20768]
[1609578534818,1.9951131,733.41,733.35,20.20768]
[1609578535617,1.99500161,733.46,733.35,20.20768]
[1609578536318,1.99500249,733.48,733.35,20.20768]
[1609578536518,1.99500249,733.48,733.47,6.01438]
[1609578538218,1.99500249,733.48,733.47,20.34418]
[1609578539825,1.99490912,733.49,733.47,20.34418]
[1609578540726,1.99491727,733.52,733.47,20.34418]
[1609578541527,1.99491727,733.52,733.47,6.01438]
[1609578541730,1.99491727,733.52,733.51,80.3612]
[1609578542027,1.99488358,733.53,733.51,80.3612]
[1609578543033,1.99488998,733.55,733.51,80.3612]
[1609578543433,1.99488998,733.55,733.47,6.01438]
[1609578544129,93.6735,733.51,733.47,6.01438]
[1609578544329,93.6735,733.51,733.32,4.108]
[1609578544729,93.6735,733.51,733.26,78.7972]
[1609578544929,93.6735,733.51,733.5,6.01438]
[1609578545333,1.99488998,733.55,733.5,6.01438]
[1609578545932,1.61567596,733.51,733.5,6.01438]
[1609578547133,1.99477851,733.56,733.5,6.01438]
[1609578548034,23.39911501,733.75,733.5,6.01438]
[1609578548035,1.99476453,733.57,733.5,6.01438]
[1609578548436,1.99471754,733.58,733.5,6.01438]
[1609578549435,1.99470195,733.59,733.5,6.01438]
[1609578549636,85.3867,733.51,733.5,6.01438]
[1609578551135,8.00908595,733.63,733.5,6.01438]
[1609578551536,1.61583774,733.51,733.5,6.01438]
[1609578552036,6.01438,733.63,733.5,6.01438]
[1609578552037,1.99465646,733.55,733.5,6.01438]
[1609578559043,1.99452705,733.6,733.5,6.01438]
[1609578561147,1.6145806,733.7,733.5,6.01438]
[1609578561148,1.99452555,733.58,733.5,6.01438]
[1609578563350,1.99451632,733.6,733.5,6.01438]
[1609578565352,1.99443552,733.61,733.5,6.01438]
[1609578566358,1.99443301,733.59,733.5,6.01438]
[1609578567651,1.99442097,733.57,733.5,6.01438]
[1609578568653,1.99440703,733.59,733.5,6.01438]
[1609578569653,1.99435945,733.6,733.5,6.01438]
[1609578570453,1.61450979,733.61,733.5,6.01438]
[1609578570855,1.61450979,733.61,733.6,6.01438]
[1609578573362,1.61450979,733.61,733.6,6.61438]
[1609578573560,1.99416122,733.68,733.6,6.61438]
[1609578574361,1.58371741,733.71,733.6,6.61438]
[1609578574362,3.57780569,733.71,733.6,6.61438]
[1609578574761,3.57780569,733.71,733.63,101.1497]
[1609578574962,3.57780569,733.71,733.7,6.01438]
[1609578575963,1.99408828,733.71,733.7,6.01438]
[1609578580266,2.65878438,733.78,733.7,6.01438]
[1609578582269,1.99384673,733.71,733.7,6.01438]
[1609578582468,1.99384673,733.71,733.7,88.38848]
[1609578583268,5.82369399,733.93,733.7,88.38848]
[1609578583269,1.99371882,733.82,733.7,88.38848]
[1609578584269,1.99371882,733.82,733.7,6.01438]
[1609578584671,1.99367408,733.84,733.77,83.6574]
[1609578584870,1.99367408,733.84,733.7,6.01438]
[1609578585071,1.99367408,733.84,733.83,6.01438]
[1609578585271,1.99367408,733.84,733.83,10.44138]
[1609578585471,1.99367926,733.86,733.83,10.44138]
[1609578586171,1.99367926,733.86,733.84,11.2962]
[1609578586674,1.58358078,733.84,733.83,10.44138]
[1609578587673,1.99367926,733.86,733.83,10.44138]
[1609578587875,1.99367926,733.86,733.85,84.7169]
[1609578590476,1.993682,733.87,733.85,84.7169]
[1609578592976,1.58261635,733.86,733.85,84.7169]
[1609578593375,1.993682,733.87,733.85,84.7169]
[1609578594277,1.993682,733.87,733.86,0.6]
[1609578595279,6.01438,733.89,733.86,0.6]
[1609578597683,1.58253761,733.88,733.86,0.6]
[1609578598685,6.01438,733.89,733.86,0.6]
[1609578603185,109.9093,733.87,733.86,0.6]
[1609578606193,115.49768404,733.87,733.86,0.6]
[1609578607796,5.58838404,733.87,733.86,0.6]
[1609578609098,1.58113116,733.88,733.86,0.6]
[1609578610402,2.658035,733.87,733.86,0.6]
[1609578611405,1.58113116,733.88,733.86,0.6]
[1609578612506,3.57508481,733.87,733.86,0.6]
[1609578617418,1.99348676,733.87,733.86,0.6]
[1609578620223,1.58176327,733.88,733.86,0.6]
[1609578620922,1.58176327,733.88,733.86,12.356]
[1609578621325,1.58176327,733.88,733.86,0.6]
[1609578622824,1.38176327,733.88,733.86,0.6]
[1609578624025,1.57585863,733.87,733.86,0.6]
[1609578624725,1.37585863,733.87,733.86,0.6]
[1609578625225,6.01438,733.89,733.86,0.6]
[1609578634333,6.01438,733.89,733.87,14.506]
[1609578634533,6.01438,733.89,733.86,0.6]
[1609578634733,6.01438,733.89,733.87,83.0439]
[1609578638843,1.99340496,733.92,733.87,83.0439]
[1609578639342,6.01438,733.88,733.87,83.0439]
[1609578660770,1.99328477,733.96,733.87,83.0439]
[1609578661371,1.9931172,734.03,733.87,83.0439]
[1609578661571,1.9931172,734.03,733.86,0.6]
[1609578661771,1.9931172,734.03,734.0,6.01438]
[1609578662373,1.99308532,734.04,734.0,6.01438]
[1609578662774,1.99308532,734.04,734.01,12.6023]
[1609578663577,1.99308532,734.04,734.0,6.01438]
[1609578663777,6.01438,734.01,734.0,6.01438]
[1609578665279,7.59548665,734.01,734.0,6.01438]
[1609578667179,6.01438,734.01,734.0,6.01438]
[1609578668278,6.01438,734.01,733.89,78.2873]
[1609578669683,17.29492374,734.25,733.89,78.2873]
[1609578669684,6.01438,733.9,733.89,78.2873]
[1609578671282,1.9930758,734.04,733.89,78.2873]
[1609578671682,6.01438,733.98,733.89,78.2873]
[1609578678291,6.01438,733.98,733.86,0.6]
[1609578678491,101.243,733.87,733.86,0.6]
[1609578678691,116.243,733.87,733.86,0.6]
[1609578679694,122.25738,733.87,733.86,0.6]
[1609578679893,107.25738,733.87,733.86,0.6]
[1609578680395,122.25738,733.87,733.86,0.6]
[1609578681500,6.01438,733.87,733.86,0.6]
[1609578681799,7.59618029,733.87,733.86,0.6]
[1609578682298,22.59618029,733.87,733.86,0.6]
[1609578683201,21.01438,733.87,733.86,0.6]
[1609578683401,6.01438,733.87,733.86,0.6]
[1609578683600,21.01438,733.87,733.86,0.6]
[1609578684205,22.5961946,733.87,733.86,0.6]
[1609578684505,7.5961946,733.87,733.86,0.6]
[1609578684701,22.5961946,733.87,733.86,0.6]
[1609578686005,7.5961946,733.87,733.86,0.6]
[1609578688305,6.01438,733.87,733.86,0.6]
[1609578690526,7.59610141,733.87,733.86,0.6]
[1609578693729,6.01438,733.87,733.86,0.6]
[1609578696138,7.58638587,733.87,733.86,0.6]
[1609578698138,1.57200587,733.87,733.86,0.6]
[1609578698640,6.01438,733.87,733.86,0.6]
[1609578711649,89.86068,733.87,733.86,0.6]
[1609578712350,6.01438,733.87,733.86,0.6]
[1609578720467,127.79488,733.87,733.86,0.6]
[1609578720670,127.79488,733.87,733.86,0.4805]
[1609578720868,127.79488,733.87,733.24,14.88781913]
[1609578721068,127.79488,733.87,733.28,96.6575]
[1609578722469,133.7187956,733.87,733.28,96.6575]
[1609578722668,6.01438,733.29,733.28,96.6575]
[1609578723069,6.01438,733.29,733.07,14.90951596]
[1609578723270,6.01438,733.29,733.02,109.6044]
[1609578724670,6.01438,733.03,733.02,109.6044]
[1609578729573,6.01438,733.03,732.86,6.01438]
[1609578730874,6.01438,732.87,732.86,6.01438]
[1609578743691,86.2095,733.15,732.73,101.6039]
[1609578744192,86.2095,733.15,732.73,104.6559]
[1609578744794,1.99498613,733.22,732.73,3.052]
[1609578744993,97.0131,732.9,732.73,3.052]
[1609578745394,6.01438,732.83,732.8,6.01438]
[1609578747595,113.2623,733.07,732.8,6.01438]
[1609578747796,1.99499717,733.17,732.8,6.01438]
[1609578747996,1.99499717,733.17,732.81,106.8072]
[1609578748398,1.99504959,733.16,732.81,106.8072]
[1609578749098,1.69363061,733.16,732.81,106.8072]
[1609578749297,6.01438,732.92,732.81,106.8072]
[1609578749499,6.01438,732.92,732.8,6.01438]
[1609578759318,6.01438,732.81,732.8,6.01438]
[1609578761024,6.01438,732.81,732.73,3.052]
[1609578761422,6.01438,732.81,732.53,6.01438]
[1609578763529,6.01438,732.54,732.53,6.01438]
[1609578764328,6.01438,732.54,732.31,14.96653511]
[1609578765430,6.01438,732.32,732.31,14.96653511]
[1609578767033,6.01438,732.32,732.27,102.605]
[1609578768832,6.01438,732.32,732.26,18.29742365]
[1609578769034,83.9359,732.27,732.26,18.29742365]
[1609578769233,83.9359,732.27,732.16,14.9756373]
[1609578769433,6.01438,732.17,732.16,14.9756373]
[1609578770433,6.01438,732.17,731.94,27.64585611]
[1609578770434,6.01438,732.17,731.94,96.30178]
[1609578771434,6.01438,732.17,732.08,6.01438]
[1609578771835,6.01438,732.17,732.08,10.07438]
[1609578776743,6.01438,732.17,732.08,4.06]
[1609578777148,6.01438,732.17,731.83,14.97854058]
[1609578777448,6.01438,732.05,731.83,14.97854058]
[1609578780750,6.01438,732.05,731.82,14.97829266]
[1609578781551,6.01438,732.05,731.98,6.01438]
[1609578781953,6.01438,732.05,731.98,10.75338]
[1609578783753,90.3385,732.22,731.98,10.75338]
[1609578783953,11.8265,732.5,731.98,10.75338]
[1609578784152,92.8997,732.48,731.98,10.75338]
[1609578784953,1.99079304,732.51,732.29,91.5229]
[1609578785354,1.99079304,732.51,732.22,3.976]
[1609578785555,1.99079304,732.51,732.5,6.01438]
[1609578785752,1.98988358,732.52,732.5,6.01438]
[1609578786954,6.01438,732.67,732.5,6.01438]
[1609578787554,6.01438,732.67,732.66,6.01438]
[1609578788155,1.99514187,732.91,732.69,13.7489]
[1609578788961,1.99553111,732.96,732.69,13.7489]
[1609578789559,1.99553111,732.96,732.89,6.01438]
[1609578790260,8.01028806,733.01,732.89,6.01438]
[1609578791261,1.90760406,733.0,732.89,6.01438]
[1609578791865,1.90760406,733.0,732.69,13.7489]
[1609578793668,1.90760406,733.0,732.87,6.01438]
[1609578794168,6.01438,733.01,732.87,6.01438]
[1609578794781,106.7241,732.88,732.81,4.363]
[1609578796979,2.7417,732.87,732.81,4.363]
[1609578797680,6.01438,732.82,732.81,4.363]
[1609578799180,6.01438,732.82,732.65,4.692]
[1609578799380,6.01438,732.82,732.56,85.1482]
[1609578799781,6.01438,732.82,732.69,6.01438]
[1609578799981,6.01438,732.82,732.69,10.49438]
[1609578800782,2.7586,732.81,732.69,10.49438]
[1609578801882,6.01438,732.82,732.69,10.49438]
[1609578802487,6.01438,732.82,732.69,4.48]
[1609578802986,2.739,732.81,732.69,4.48]
[1609578803689,2.739,732.81,732.69,10.49438]
[1609578805593,2.739,732.81,732.69,4.48]
[1609578805791,6.01438,732.74,732.62,6.01438]
[1609578808293,15.6493,732.85,732.62,6.01438]
[1609578808593,15.6493,732.85,732.62,9.38738]
[1609578809694,15.6493,732.85,732.73,6.01438]
[1609578811698,6.01438,732.74,732.73,6.01438]
[1609578816505,6.01438,732.74,732.62,3.373]
[1609578816704,6.01438,732.74,732.44,3.031]
[1609578816905,112.6674,732.77,732.37,87.4133]
[1609578817306,112.6674,732.77,732.37,91.0863]
[1609578817704,6.01438,732.63,732.5,6.01438]
[1609578818108,6.01438,732.63,732.37,91.0863]
[1609578819707,112.6674,732.77,732.44,6.01438]
[1609578821709,6.01438,732.56,732.44,6.01438]
[1609578823112,6.01438,732.56,732.55,108.157]
[1609578823315,1.9951488,732.78,732.55,108.157]
[1609578823713,1.9951488,732.78,732.75,6.01438]
[1609578824313,1.9951488,732.78,732.77,100.9099]
[1609578825417,1.99460542,732.79,732.77,100.9099]
[1609578826517,6.01438,732.91,732.77,100.9099]
[1609578826917,1.99617492,733.08,732.77,100.9099]
[1609578827418,1.99605916,733.01,732.77,100.9099]
[1609578827821,8.01043916,733.01,732.77,100.9099]
[1609578828524,6.01438,733.01,732.77,100.9099]
[1609578829729,6.01438,733.01,732.88,6.01438]
[1609578829929,6.01438,733.01,732.9,15.9079]
[1609578831834,1.9959811,733.07,732.9,15.9079]
[1609578832332,6.01438,733.01,732.92,6.01438]
[1609578835545,6.01438,733.01,733.0,105.2832]
[1609578836144,1.99599028,733.08,733.0,105.2832]
[1609578836340,6.01438,733.07,733.0,105.2832]
[1609578837645,6.01438,733.07,732.83,4.617]
[1609578838245,8.01043785,733.07,732.83,4.617]
[1609578838446,6.01438,732.91,732.83,4.617]
[1609578841050,6.01438,732.91,732.82,107.2368]
[1609578842454,6.01438,732.91,732.67,4.25]
[1609578842656,86.3367,732.68,732.28,77.3187]
[1609578844459,6.01438,732.46,732.29,6.01438]
[1609578847162,86.3367,732.68,732.29,6.01438]
[1609578847463,86.3367,732.68,732.29,10.75738]
[1609578848364,6.01438,732.55,732.29,10.75738]
[1609578850467,6.01438,732.55,732.4,6.01438]
[1609578855470,13.6528,732.52,732.4,6.01438]
[1609578869189,6.01438,732.46,732.4,6.01438]
[1609578870093,6.01438,732.46,732.29,4.743]
[1609578870292,6.01438,732.46,732.28,77.3187]
[1609578870592,6.01438,732.46,732.02,14.97646706]
[1609578870992,109.8766,732.45,732.02,14.97646706]
[1609578871192,6.01438,732.34,732.14,6.01438]
[1609578872798,16.0202,732.31,732.14,6.01438]
[1609578875196,6.01438,732.18,732.14,6.01438]
[1609578876499,16.0202,732.31,731.97,90.5448]
[1609578876897,16.0202,732.31,731.97,93.6888]
[1609578877299,16.0202,732.31,732.13,6.01438]
[1609578877797,16.0202,732.31,732.13,9.98538]
[1609578878601,1.99280229,732.53,732.13,9.98538]
[1609578878803,103.8633,732.14,732.13,9.98538]
[1609578883307,6.01438,732.19,732.13,9.98538]
[1609578886122,98.1298,732.35,732.13,9.98538]
[1609578886322,1.99162247,732.47,732.13,9.98538]
[1609578886522,1.99162247,732.47,732.22,101.1277]
[1609578886914,1.99162247,732.47,732.14,15.0]
[1609578887113,1.99162247,732.47,732.37,102.3804]
[1609578888115,6.01438,732.49,732.37,102.3804]
[1609578889417,6.01438,732.38,732.37,102.3804]
[1609578889618,6.01438,732.38,732.29,6.01438]
[1609578891521,6.01438,732.3,732.29,6.01438]
[1609578891820,1.99361964,732.64,732.29,6.01438]
[1609578892222,1.99271194,732.63,732.29,6.01438]
[1609578893022,3.84448671,732.63,732.29,6.01438]
[1609578893422,6.01438,732.46,732.29,6.01438]
[1609578895524,6.01438,732.37,732.29,6.01438]
[1609578899429,1.99245909,732.65,732.29,6.01438]
[1609578899628,6.01438,732.49,732.29,6.01438]
[1609578901629,6.01438,732.4,732.29,6.01438]
[1609578906941,1.9910064,732.64,732.29,6.01438]
[1609578907743,6.01438,732.63,732.29,6.01438]
[1609578909245,12.2984,732.62,732.29,6.01438]
[1609578909747,6.01438,732.47,732.39,6.01438]
[1609578918462,6.01438,732.47,732.23,78.2872]
[1609578919765,6.01438,732.38,732.3,6.01438]
[1609578924275,6.01438,732.38,732.23,78.2872]
[1609578925877,6.01438,732.24,732.23,78.2872]
[1609578926076,6.01438,732.24,732.22,6.01438]
[1609578926975,109.154,732.46,732.22,6.01438]
[1609578927176,109.154,732.46,732.22,20.27958]
[1609578927776,6.01438,732.23,732.22,20.27958]
[1609578931281,109.154,732.46,732.22,20.27958]
[1609578931882,6.01438,732.23,732.22,20.27958]
[1609578935285,109.154,732.46,732.22,14.2652]
[1609578935785,1.98856076,732.58,732.13,3.971]
[1609578935985,1.98856076,732.58,732.25,6.01438]
[1609578937691,1.98992312,732.57,732.25,6.01438]
[1609578937892,6.01438,732.26,732.25,6.01438]
[1609578954205,6.01438,732.26,732.17,6.01438]
[1609578956306,6.01438,732.18,732.17,6.01438]
[1609578957307,6.01438,732.18,732.17,118.16018]
[1609578971828,1.98866384,732.57,732.17,112.1458]
[1609578972125,1.98817616,732.56,732.17,112.1458]
[1609578972425,1.98817616,732.56,732.22,6.01438]
[1609578973127,1.98807729,732.55,732.22,6.01438]
[1609578974026,1.9881311,732.56,732.22,6.01438]
[1609578974428,6.01438,732.23,732.22,6.01438]
[1609578979435,87.6791,732.46,732.18,85.1098]
[1609578979634,1.98863017,732.57,732.13,3.971]
[1609578979835,1.98863017,732.57,731.99,15.0]
[1609578980035,1.98863017,732.57,732.22,90.8852]
[1609578980437,1.98863017,732.57,732.23,6.01438]
[1609578980637,1.9884809,732.56,732.23,6.01438]
[1609578981140,1.86968153,732.56,732.23,6.01438]
[1609578981839,1.98852134,732.56,732.23,6.01438]
[1609578982438,6.01438,732.24,732.23,6.01438]
[1609578983939,1.98852134,732.56,732.23,6.01438]
[1609578984441,6.01438,732.47,732.23,21.01438]
[1609578985342,6.01438,732.47,732.46,109.5183]
[1609578986042,1.9883907,732.6,732.46,109.5183]
[1609578986446,1.9883907,732.6,732.5,6.01438]
[1609578987546,1.98879242,732.66,732.5,6.01438]
[1609578987944,1.98879242,732.66,732.5,9.92838]
[1609578988445,1.98879242,732.66,732.6,6.01438]
[1609578989049,1.99105589,732.84,732.6,6.01438]
[1609578989445,1.99105589,732.84,732.69,108.4509]
[1609578990445,6.01438,732.7,732.69,108.4509]
[1609578995753,5.44378306,732.88,732.69,108.4509]
[1609578996554,6.01438,732.75,732.69,108.4509]
[1609578999557,6.01438,732.75,732.6,6.01438]
[1609578999759,6.01438,732.75,732.63,109.9661]
[1609579000559,6.01438,732.67,732.63,109.9661]
[1609579004560,1.99096306,732.81,732.63,109.9661]
[1609579004760,6.01438,732.74,732.63,109.9661]
[1609579008962,1.99417646,732.86,732.63,109.9661]
[1609579009161,1.99417646,732.86,732.54,6.01438]
[1609579009364,1.99417646,732.86,732.73,92.3577]
[1609579009563,1.99417646,732.86,732.54,6.01438]
[1609579009762,1.99425263,732.85,732.73,81.4225]
[1609579009961,1.99425263,732.85,732.54,6.01438]
[1609579010161,1.99425263,732.85,732.7,86.5693]
[1609579010663,1.99424714,732.86,732.54,6.01438]
[1609579010863,6.01438,732.56,732.54,6.01438]
[1609579011064,6.01438,732.56,732.55,78.2464]
[1609579011266,1.99424714,732.86,732.55,78.2464]
[1609579011464,1.99424714,732.86,732.54,6.01438]
[1609579011665,1.99424714,732.86,732.79,108.4866]
[1609579012769,6.01438,732.81,732.79,108.4866]
[1609579013166,1.99424714,732.86,732.79,108.4866]
[1609579014769,6.01438,732.82,732.79,108.4866]
[1609579016977,1.99424714,732.86,732.79,108.4866]
[1609579017973,2.66001719,732.99,732.79,108.4866]
[1609579018774,6.01438,732.8,732.79,108.4866]
[1609579019775,2.66072593,733.03,732.79,108.4866]
[1609579019980,2.66072593,733.03,732.66,3.514]
[1609579020176,2.66072593,733.03,732.92,95.6784]
[1609579020376,2.66072593,733.03,732.66,3.514]
[1609579020578,2.66111245,733.05,732.9,78.4721]
[1609579020777,6.01438,732.91,732.9,78.4721]
[1609579021677,1.87897074,733.02,732.9,78.4721]
[1609579021877,1.87897074,733.02,732.78,6.01438]
[1609579022279,7.29743907,733.11,732.95,85.153]
[1609579024683,7.29743907,733.11,732.89,6.01438]
[1609579024883,7.29743907,733.11,733.1,109.5425]